lending/lending_fUSD_20240809
["ID","MTS","AMOUNT","RATE_DAILY","PERIOD"]
[334508543,1723170663854,-2625.2,0.00024496,5]
[334508544,1723170663864,-2625.2,0.00024496,5]
[334508545,1723170663874,-821.23,0.00024496,5]
[334508546,1723170663884,-821.23,0.00024496,5]
[334508547,1723170663893,-821.23,0.00024496,5]
[334508548,1723170663903,-6964.81,0.00024496,5]
[334508549,1723170663913,-6964.81,0.00024496,5]
[334508550,1723170663922,-6964.81,0.00024496,5]
[334508551,1723170663931,-6964.81,0.00024496,5]
[334508552,1723170663940,-736.19,0.00024496,5]
[334508553,1723170663949,-736.19,0.00024496,5]
[334508554,1723170663959,-736.19,0.00024496,5]
[334508555,1723170663969,-5593.89,0.00024496,5]
[334508556,1723170663978,-5593.89,0.00024496,5]
[334508557,1723170663987,-5593.89,0.00024496,5]
[334508558,1723170663997,-5593.89,0.00024496,5]
[334508559,1723170664006,-524.95,0.00024496,5]
[334508560,1723170664015,-848.37,0.00024496,5]
[334508561,1723170664024,-848.37,0.00024496,5]
[334508562,1723170664034,-848.37,0.00024496,5]
[334508563,1723170664043,-1423.3,0.00024496,5]
[334508564,1723170664053,-1423.3,0.00024496,5]
[334508565,1723170664062,-1423.3,0.00024496,5]
[334508566,1723170664072,-8891.33,0.00024496,5]
[334508567,1723170664081,-8891.33,0.00024496,5]
[334508568,1723170664091,-8891.33,0.00024496,5]
[334508569,1723170664100,-8891.33,0.00024496,5]
[334508570,1723170664111,-2611.94,0.00024496,5]
[334508571,1723170664121,-500.0,0.00024496,5]
[334508572,1723170664131,-2611.94,0.00024496,5]
[334508573,1723170664141,-2611.94,0.00024496,5]
[334508574,1723170664150,-500.0,0.00024496,5]
[334508575,1723170664160,-500.0,0.00024496,5]
[334508576,1723170664169,-500.0,0.00024496,5]
[334508577,1723170664179,-1484.69,0.00024496,5]
[334508578,1723170664188,-1484.69,0.00024496,5]
[334508579,1723170664198,-2467.79,0.00024496,5]
[334508580,1723170664208,-1484.69,0.00024496,5]
[334508581,1723170664217,-1484.69,0.00024496,5]
[334508582,1723170664228,-2467.79,0.00024496,5]
[334508583,1723170664237,-2467.79,0.00024496,5]
[334508584,1723170664246,-19278.68,0.00024496,5]
[334508585,1723170664256,-19278.68,0.00024496,5]
[334508586,1723170664265,-19278.68,0.00024496,5]
[334508587,1723170664275,-19278.68,0.00024496,5]
[334508588,1723170664286,-500.0,0.00024496,5]
[334508589,1723170664296,-500.0,0.00024496,5]
[334508590,1723170664307,-500.0,0.00024496,5]
[334508591,1723170664316,-3266.28,0.00024496,5]
[334508592,1723170664326,-3266.28,0.00024496,5]
[334508593,1723170664335,-3266.28,0.00024496,5]
[334508594,1723170664345,-3266.28,0.00024496,5]
[334508595,1723170664354,-3266.28,0.00024496,5]
[334508596,1723170664364,-3266.28,0.00024496,5]
[334508597,1723170664373,-3266.33108615,0.00024496,5]
[334508598,1723170664385,-3512.02,0.00024496,5]
[334508599,1723170664395,-3512.02,0.00024496,5]
[334508600,1723170664405,-3512.02,0.00024496,5]
[334508601,1723170664415,-510.51711796,0.00024496,5]
[334508602,1723170664426,-500.0,0.00024496,5]
[334508603,1723170664435,-14746.04,0.00024496,5]
[334508604,1723170664445,-14746.04,0.00024496,5]
[334508605,1723170664454,-14746.04,0.00024496,5]
[334508606,1723170664464,-2178.07,0.00024496,5]
[334508607,1723170664475,-2178.07,0.00024496,5]
[334508608,1723170664485,-2178.07,0.00024496,5]
[334508609,1723170664495,-19531.05,0.00024496,5]
[334508610,1723170664505,-19531.05,0.00024496,5]
[334508611,1723170664515,-19531.05,0.00024496,5]
[334508612,1723170664524,-19531.05,0.00024496,5]
[334508613,1723170664536,-1434.81,0.00024496,5]
[334508614,1723170664546,-500.0,0.00024496,5]
[334508615,1723170664555,-413.48559063,0.00024496,5]
[334508616,1723170664564,-1434.81,0.00024496,5]
[334508617,1723170664578,-1434.81,0.00024496,5]
[334508618,1723170664587,-5316.05,0.00024496,5]
[334508619,1723170664597,-5316.05,0.00024496,5]
[334508620,1723170664606,-5316.05,0.00024496,5]
[334508621,1723170664615,-151.0,0.00024496,7]
[334508622,1723170664625,-151.0,0.00024496,7]
[334508623,1723170664634,-3975.48,0.00024496,5]
[334508624,1723170664643,-3975.48,0.00024496,5]
[334508625,1723170664652,-3975.48,0.00024496,5]
[334508626,1723170664663,-3975.48,0.00024496,5]
[334508627,1723170664672,-8954.12,0.00024496,5]
[334508628,1723170664682,-500.0,0.00024496,5]
[334508629,1723170664691,-8954.12,0.00024496,5]
[334508630,1723170664701,-8954.12,0.00024496,5]
[334508631,1723170664711,-8954.12,0.00024496,5]
[334508632,1723170664720,-1114.76,0.00024496,5]
[334508633,1723170664730,-1114.76,0.00024496,5]
[334508634,1723170664739,-500.0,0.00024496,5]
[334508635,1723170664749,-1114.76,0.00024496,5]
[334508636,1723170664759,-14406.27,0.00024496,5]
[334508637,1723170664768,-14406.27,0.00024496,5]
[334508638,1723170664778,-14406.27,0.00024496,5]
[334508639,1723170664791,-14406.27,0.00024496,5]
[334508640,1723170664801,-500.0,0.00024496,5]
[334508641,1723170664810,-2531.5,0.00024496,5]
[334508642,1723170664820,-2531.5,0.00024496,5]
[334508643,1723170664829,-2531.5,0.00024496,5]
[334508644,1723170664838,-500.0,0.00024496,5]
[334508645,1723170664848,-500.0,0.00024496,5]
[334508646,1723170664858,-488.0929599,0.00024496,5]
[334508647,1723170664867,-4267.61,0.00024496,5]
[334508648,1723170664877,-4267.61,0.00024496,5]
[334508649,1723170664886,-4267.61,0.00024496,5]
[334508650,1723170664895,-3935.81,0.00024496,5]
[334508651,1723170664906,-5687.1,0.00024496,5]
[334508652,1723170664915,-3935.81,0.00024496,5]
[334508653,1723170664925,-5687.1,0.00024496,5]
[334508654,1723170664935,-3935.81,0.00024496,5]
[334508655,1723170664944,-5687.1,0.00024496,5]
[334508656,1723170664954,-3343.34,0.00024496,5]
[334508657,1723170664964,-5687.1,0.00024496,5]
[334508658,1723170664973,-3343.34,0.00024496,5]
[334508659,1723170664983,-3343.34,0.00024496,5]
[334508660,1723170664992,-1676.07,0.00024496,5]
[334508661,1723170665002,-1676.07,0.00024496,5]
[334508662,1723170665011,-1676.07,0.00024496,5]
[334508663,1723170665020,-500.0,0.00024496,5]
[334508664,1723170665031,-500.0,0.00024496,5]
[334508665,1723170665041,-2537.2,0.00024496,5]
[334508666,1723170665051,-2537.2,0.00024496,5]
[334508667,1723170665062,-500.0,0.00024496,5]
[334508668,1723170665072,-2537.2,0.00024496,5]
[334508669,1723170665081,-9551.07,0.00024496,5]
[334508670,1723170665091,-9551.07,0.00024496,5]
[334508671,1723170665100,-9551.07,0.00024496,5]
[334508672,1723170665109,-9551.07,0.00024496,5]
[334508673,1723170665120,-1879.01,0.00024496,5]
[334508674,1723170665130,-1879.01,0.00024496,5]
[334508675,1723170665139,-500.0,0.00024496,5]
[334508676,1723170665149,-1879.01,0.00024496,5]
[334508677,1723170665158,-500.0,0.00024496,5]
[334508678,1723170665168,-500.0,0.00024496,5]
[334508679,1723170665177,-3395.41,0.00024496,5]
[334508680,1723170665187,-3395.41,0.00024496,5]
[334508681,1723170665199,-3395.41,0.00024496,5]
[334508682,1723170665208,-1589.47,0.00024496,5]
[334508683,1723170665218,-500.0,0.00024496,5]
[334508684,1723170665227,-28467.15,0.00024496,5]
[334508685,1723170665237,-28467.15,0.00024496,5]
[334508686,1723170665247,-28467.15,0.00024496,5]
[334508687,1723170665257,-3396.98,0.00024496,5]
[334508688,1723170665266,-28467.15,0.00024496,5]
[334508689,1723170665276,-3396.98,0.00024496,5]
[334508690,1723170665288,-3396.98,0.00024496,5]
[334508691,1723170665298,-587.07,0.00024496,5]
[334508692,1723170665307,-855.23,0.00024496,5]
[334508693,1723170665317,-1212.01,0.00024496,5]
[334508694,1723170665326,-1212.01,0.00024496,5]
[334508695,1723170665335,-1212.01,0.00024496,5]
[334508696,1723170665345,-500.0,0.00024496,5]
[334508697,1723170665354,-2158.92,0.00024496,5]
[334508698,1723170665364,-2158.92,0.00024496,5]
[334508699,1723170665373,-2158.92,0.00024496,5]
[334508700,1723170665383,-1187.45,0.00024496,5]
[334508701,1723170665395,-5367.26,0.00024496,5]
[334508702,1723170665405,-5367.26,0.00024496,5]
[334508703,1723170665414,-5367.26,0.00024496,5]
[334508704,1723170665423,-5240.17,0.00024496,5]
[334508705,1723170665438,-5240.17,0.00024496,5]
[334508706,1723170665447,-610.57,0.00024496,5]
[334508707,1723170665456,-5240.17,0.00024496,5]
[334508708,1723170665467,-500.0,0.00024496,5]
[334508709,1723170665476,-5240.17,0.00024496,5]
[334508710,1723170665486,-1636.19,0.00024496,5]
[334508711,1723170665496,-1636.19,0.00024496,5]
[334508712,1723170665506,-1636.19,0.00024496,5]
[334508713,1723170665516,-500.0,0.00024496,5]
[334508714,1723170665526,-3366.11,0.00024496,5]
[334508715,1723170665536,-3366.11,0.00024496,5]
[334508716,1723170665545,-3366.11,0.00024496,5]
[334508717,1723170665555,-500.0,0.00024496,5]
[334508718,1723170665564,-2840.81,0.00024496,5]
[334508719,1723170665574,-2840.81,0.00024496,5]
[334508720,1723170665584,-2606.36,0.00024496,5]
[334508721,1723170665593,-2840.81,0.00024496,5]
[334508722,1723170665602,-4490.81,0.00024496,5]
[334508723,1723170665611,-2606.36,0.00024496,5]
[334508724,1723170665620,-2840.81,0.00024496,5]
[334508725,1723170665630,-2606.36,0.00024496,5]
[334508726,1723170665639,-4490.81,0.00024496,5]
[334508727,1723170665649,-4490.81,0.00024496,5]
[334508728,1723170665659,-3854.56,0.00024496,5]
[334508729,1723170665668,-4490.81,0.00024496,5]
[334508730,1723170665679,-3854.56,0.00024496,5]
[334508731,1723170665688,-4490.81,0.00024496,5]
[334508732,1723170665698,-3854.56,0.00024496,5]
[334508733,1723170665708,-4490.81,0.00024496,5]
[334508734,1723170665718,-4490.87614554,0.00024496,5]
[334508735,1723170665728,-7292.06,0.00024496,5]
[334508736,1723170665737,-500.0,0.00024496,5]
[334508737,1723170665746,-7292.06,0.00024496,5]
[334508738,1723170665756,-7292.06,0.00024496,5]
[334508739,1723170665766,-500.0,0.00024496,5]
[334508740,1723170665775,-1023.78,0.00024496,5]
[334508741,1723170665787,-764.66,0.00024496,5]
[334508742,1723170665796,-764.66,0.00024496,5]
[334508743,1723170665806,-764.66,0.00024496,5]
[334508744,1723170665816,-321.85264109,0.00024496,5]
[334508745,1723170665826,-500.0,0.00024496,5]
[334508746,1723170665836,-500.0,0.00024496,5]
[334508747,1723170665846,-500.0,0.00024496,5]
[334508748,1723170665856,-500.0,0.00024496,5]
[334508749,1723170665866,-502.77477422,0.00024496,5]
[334508750,1723170665875,-2602.88,0.00024496,5]
[334508751,1723170665885,-8501.32,0.00024496,5]
[334508752,1723170665895,-8501.32,0.00024496,5]
[334508753,1723170665905,-500.0,0.00024496,5]
[334508754,1723170665914,-8501.32,0.00024496,5]
[334508755,1723170665924,-8501.32,0.00024496,5]
[334508756,1723170665934,-2602.88,0.00024496,5]
[334508757,1723170665943,-2602.88,0.00024496,5]
[334508758,1723170665952,-500.0,0.00024496,5]
[334508759,1723170665962,-9194.03,0.00024496,5]
[334508760,1723170665971,-500.0,0.00024496,5]
[334508761,1723170665981,-9194.03,0.00024496,5]
[334508762,1723170665990,-9194.03,0.00024496,5]
[334508763,1723170666000,-4565.42,0.00024496,5]
[334508764,1723170666009,-4565.42,0.00024496,5]
[334508765,1723170666018,-4565.42,0.00024496,5]
[334508766,1723170666028,-500.0,0.00024496,5]
[334508767,1723170666040,-4565.42,0.00024496,5]
[334508768,1723170666052,-2492.06,0.00024496,5]
[334508769,1723170666062,-2492.06,0.00024496,5]
[334508770,1723170666071,-2492.06,0.00024496,5]
[334508771,1723170666080,-2492.06,0.00024496,5]
[334508772,1723170666090,-2492.06,0.00024496,5]
[334508773,1723170666099,-1509.86,0.00024496,5]
[334508774,1723170666109,-2492.06,0.00024496,5]
[334508775,1723170666119,-2492.15667561,0.00024496,5]
[334508776,1723170666129,-1509.86,0.00024496,5]
[334508777,1723170666139,-1509.86,0.00024496,5]
[334508778,1723170666149,-500.0,0.00024496,5]
[334508779,1723170666160,-1269.81,0.00024496,5]
[334508780,1723170666170,-1269.81,0.00024496,5]
[334508781,1723170666180,-500.0,0.00024496,5]
[334508782,1723170666191,-1269.81,0.00024496,5]
[334508783,1723170666201,-19443.35,0.00024496,5]
[334508784,1723170666211,-19443.35,0.00024496,5]
[334508785,1723170666223,-19443.35,0.00024496,5]
[334508786,1723170666233,-19443.35,0.00024496,5]
[334508787,1723170666243,-500.0,0.00024496,5]
[334508788,1723170666253,-18122.69,0.00024496,5]
[334508789,1723170666263,-18122.69,0.00024496,5]
[334508790,1723170666273,-18122.69,0.00024496,5]
[334508791,1723170666286,-18122.69,0.00024496,5]
[334508792,1723170666297,-18122.69,0.00024496,5]
[334508793,1723170666307,-18122.69,0.00024496,5]
[334508794,1723170666318,-18122.75,0.00024496,5]
[334508795,1723170666328,-742.13,0.00024496,5]
[334508796,1723170666338,-554.45,0.00024496,5]
[334508797,1723170666348,-985.71,0.00024496,5]
[334508798,1723170666358,-985.71,0.00024496,5]
[334508799,1723170666367,-985.71,0.00024496,5]
[334508800,1723170666377,-151.0,0.00024496,7]
[334508801,1723170666391,-151.0,0.00024496,7]
[334508802,1723170666401,-3197.82,0.00024496,5]
[334508803,1723170666411,-3197.82,0.00024496,5]
[334508804,1723170666420,-3197.82,0.00024496,5]
[334508805,1723170666432,-501.54247793,0.00024497,5]
[334508806,1723170666442,-500.0,0.00024497,5]
[334508807,1723170666451,-501.43236633,0.00024497,5]
[334508808,1723170666462,-419.82233444,0.00024497,5]
[334508809,1723170666472,-500.0,0.00024497,5]
[334508810,1723170666482,-500.0,0.00024497,5]
[334508811,1723170666492,-303.80368216,0.00024497,5]
[334508812,1723170666502,-512.13102304,0.00024497,5]
[334508813,1723170666512,-244.11304579,0.00024497,5]
[334508814,1723170666522,-592.27300094,0.00024497,5]
[334508815,1723170666532,-501.5345073,0.00024497,5]
[334508816,1723170666552,-500.0,0.00024497,5]
[334508817,1723170666562,-511.30758286,0.00024497,5]
[334508818,1723170666571,-520.62,0.00024497,5]
[334508819,1723170666581,-740.04,0.00024497,5]
[334508820,1723170666591,-500.0,0.00024497,5]
[334508821,1723170666601,-282.12247677,0.00024497,5]
[334508822,1723170666611,-500.0,0.00024497,5]
[334508823,1723170666621,-500.0,0.00024497,5]
[334508824,1723170666631,-588.4553737,0.00024497,5]
[334508825,1723170666641,-500.0,0.00024497,5]
[334508826,1723170666652,-500.0,0.00024497,5]
[334508827,1723170666661,-500.0,0.00024497,5]
[334508828,1723170666671,-208.83629997,0.00024497,5]
[334508829,1723170666681,-500.0,0.00024497,5]
[334508830,1723170666691,-500.0,0.00024497,5]
[334508831,1723170666701,-500.0,0.00024497,5]
[334508832,1723170666710,-500.0,0.00024497,5]
[334508833,1723170666720,-500.0,0.00024497,5]
[334508834,1723170666730,-500.0,0.00024497,5]
[334508835,1723170666740,-262.36527665,0.00024497,5]
[334508836,1723170666750,-749.04,0.00024497,5]
[334508837,1723170666761,-603.59,0.00024497,5]
[334508838,1723170666771,-638.47,0.00024497,5]
[334508839,1723170666781,-500.0,0.00024497,5]
[334508840,1723170666794,-500.0,0.00024497,5]
[334508841,1723170666804,-500.0,0.00024497,5]
[334508842,1723170666815,-500.0,0.00024497,5]
[334508843,1723170666824,-500.0,0.00024497,5]
[334508844,1723170666835,-500.0,0.00024497,5]
[334508845,1723170666844,-500.0,0.00024497,5]
[334508846,1723170666854,-500.0,0.00024497,5]
[334508847,1723170666864,-500.0,0.00024497,5]
[334508848,1723170666874,-500.0,0.00024497,5]
[334508849,1723170666884,-332.1122572,0.00024497,5]
[334508850,1723170666893,-500.0,0.00024497,5]
[334508851,1723170666903,-794.61,0.00024497,5]
[334508852,1723170666913,-794.61,0.00024497,5]
[334508853,1723170666923,-794.61,0.00024497,5]
[334508854,1723170666933,-794.61,0.00024497,5]
[334508855,1723170666944,-500.0,0.00024497,5]
[334508856,1723170666954,-500.0,0.00024497,5]
[334508857,1723170666963,-504.66441372,0.00024497,5]
[334508858,1723170666974,-1523.86,0.00024497,5]
[334508859,1723170666984,-1523.86,0.00024497,5]
[334508860,1723170666994,-500.0,0.00024497,5]
[334508861,1723170667003,-1523.86,0.00024497,5]
[334508862,1723170667014,-500.0,0.00024497,5]
[334508863,1723170667023,-500.0,0.00024497,5]
[334508864,1723170667036,-1523.86,0.00024497,5]
[334508865,1723170667046,-500.0,0.00024497,5]
[334508866,1723170667055,-500.0,0.00024497,5]
[334508867,1723170667066,-500.0,0.00024497,5]
[334508868,1723170667076,-507.65388124,0.00024497,5]
[334508869,1723170667086,-500.0,0.00024497,2]
[334508870,1723170667095,-500.0,0.00024497,2]
[334508871,1723170667106,-500.0,0.00024497,2]
[334508872,1723170667116,-500.0,0.00024497,2]
[334508873,1723170667126,-506.63210627,0.00024497,5]
[334508874,1723170667137,-859.16,0.00024497,5]
[334508875,1723170667147,-859.16,0.00024497,5]
[334508876,1723170667157,-859.16,0.00024497,5]
[334508877,1723170667167,-859.16,0.00024497,5]
[334508878,1723170667177,-500.0,0.00024497,5]
[334508879,1723170667187,-500.0,0.00024497,5]
[334508880,1723170667198,-500.0,0.00024497,5]
[334508881,1723170667208,-500.0,0.00024497,5]
[334508882,1723170667218,-500.0,0.00024497,5]
[334508883,1723170667228,-500.0,0.00024497,5]
[334508884,1723170667238,-500.0,0.00024497,5]
[334508885,1723170667249,-500.0,0.00024497,5]
[334508886,1723170667259,-500.0,0.00024497,5]
[334508887,1723170667269,-500.0,0.00024497,5]
[334508888,1723170667279,-500.0,0.00024497,5]
[334508889,1723170667291,-503.17784308,0.00024497,5]
[334508890,1723170667300,-500.0,0.00024497,5]
[334508891,1723170667310,-500.0,0.00024497,5]
[334508892,1723170667321,-500.0,0.00024497,5]
[334508893,1723170667331,-500.0,0.00024497,5]
[334508894,1723170667340,-500.0,0.00024497,5]
[334508895,1723170667350,-500.0,0.00024497,5]
[334508896,1723170667360,-512.47263011,0.00024497,5]
[334508897,1723170667370,-1464.05,0.00024497,5]
[334508898,1723170667381,-1464.05,0.00024497,5]
[334508899,1723170667395,-1464.05,0.00024497,5]
[334508900,1723170667405,-1464.05,0.00024497,5]
[334508901,1723170667415,-500.0,0.00024497,5]
[334508902,1723170667424,-512.56006469,0.00024497,5]
[334508903,1723170667436,-500.0,0.00024497,5]
[334508904,1723170667447,-500.0,0.00024497,5]
[334508905,1723170667458,-500.0,0.00024497,5]
[334508906,1723170667470,-500.0,0.00024497,5]
[334508907,1723170667480,-500.0,0.00024497,5]
[334508908,1723170667490,-500.0,0.00024497,5]
[334508909,1723170667500,-550.68304197,0.00024497,5]
[334508910,1723170667510,-500.0,0.00024497,5]
[334508911,1723170667520,-500.0,0.00024497,5]
[334508912,1723170667530,-500.0,0.00024497,5]
[334508913,1723170667541,-500.0,0.00024497,2]
[334508914,1723170667552,-1228.96,0.00024497,5]
[334508915,1723170667562,-937.15,0.00024497,5]
[334508916,1723170667572,-937.15,0.00024497,5]
[334508917,1723170667582,-937.15,0.00024497,5]
[334508918,1723170667592,-937.15,0.00024497,5]
[334508919,1723170667605,-1432.51,0.00024497,5]
[334508920,1723170667616,-1432.51,0.00024497,5]
[334508921,1723170667626,-1432.51,0.00024497,5]
[334508922,1723170667636,-1432.51,0.00024497,5]
[334508923,1723170667646,-2849.52,0.00024497,5]
[334508924,1723170667658,-2849.52,0.00024497,5]
[334508925,1723170667668,-2849.52,0.00024497,5]
[334508926,1723170667679,-2849.52,0.00024497,5]
[334508927,1723170667688,-518.44283857,0.00024497,5]
[334508928,1723170667699,-2394.21,0.00024497,5]
[334508929,1723170667708,-2394.21,0.00024497,5]
[334508930,1723170667720,-2394.21,0.00024497,5]
[334508931,1723170667730,-2394.21,0.00024497,5]
[334508932,1723170667742,-3297.52,0.00024497,5]
[334508933,1723170667752,-3297.52,0.00024497,5]
[334508934,1723170667762,-3297.52,0.00024497,5]
[334508935,1723170667773,-3297.52,0.00024497,5]
[334508936,1723170667783,-3418.43,0.00024497,5]
[334508937,1723170667794,-3418.43,0.00024497,5]
[334508938,1723170667804,-3418.43,0.00024497,5]
[334508939,1723170667814,-3418.43,0.00024497,5]
[334508940,1723170667824,-1314.08,0.00024497,5]
[334508941,1723170667834,-1314.08,0.00024497,5]
[334508942,1723170667844,-1314.08,0.00024497,5]
[334508943,1723170667854,-1314.08,0.00024497,5]
[334508944,1723170667864,-1314.08,0.00024497,5]
[334508945,1723170667874,-1892.69,0.00024497,5]
[334508946,1723170667885,-1892.69,0.00024497,5]
[334508947,1723170667895,-1892.69,0.00024497,5]
[334508948,1723170667904,-1892.69,0.00024497,5]
[334508949,1723170667914,-662.29,0.00024497,5]
[334508950,1723170667924,-662.29,0.00024497,5]
[334508951,1723170667935,-662.29,0.00024497,5]
[334508952,1723170667945,-662.29,0.00024497,5]
[334508953,1723170667954,-733.95,0.00024497,5]
[334508954,1723170667964,-733.95,0.00024497,5]
[334508955,1723170667974,-733.95,0.00024497,5]
[334508956,1723170667984,-733.95,0.00024497,5]
[334508957,1723170667993,-1636.03,0.00024497,5]
[334508958,1723170668003,-1636.03,0.00024497,5]
[334508959,1723170668013,-1636.03,0.00024497,5]
[334508960,1723170668023,-1636.03,0.00024497,5]
[334508961,1723170668032,-1798.24,0.00024497,5]
[334508962,1723170668045,-1798.24,0.00024497,5]
[334508963,1723170668055,-1798.24,0.00024497,5]
[334508964,1723170668064,-1798.24,0.00024497,5]
[334508965,1723170668074,-637.46,0.00024497,5]
[334508966,1723170668084,-637.46,0.00024497,5]
[334508967,1723170668094,-637.46,0.00024497,5]
[334508968,1723170668104,-2578.67,0.00024497,5]
[334508969,1723170668114,-2578.67,0.00024497,5]
[334508970,1723170668124,-1066.56,0.00024497,5]
[334508971,1723170668134,-2578.67,0.00024497,5]
[334508972,1723170668145,-1066.56,0.00024497,5]
[334508973,1723170668155,-2578.67,0.00024497,5]
[334508974,1723170668165,-1066.56,0.00024497,5]
[334508975,1723170668175,-504.97,0.00024497,5]
[334508976,1723170668186,-500.0,0.00024497,5]
[334508977,1723170668196,-500.0,0.00024497,5]
[334508978,1723170668207,-500.0,0.00024497,5]
[334508979,1723170668217,-1017.31,0.00024497,5]
[334508980,1723170668227,-1017.31,0.00024497,5]
[334508981,1723170668237,-1017.31,0.00024497,5]
[334508982,1723170668247,-1770.98,0.00024497,5]
[334508983,1723170668257,-1017.31,0.00024497,5]
[334508984,1723170668267,-1770.98,0.00024497,5]
[334508985,1723170668278,-1770.98,0.00024497,5]
[334508986,1723170668289,-1252.89,0.00024497,5]
[334508987,1723170668299,-2762.02,0.00024497,5]
[334508988,1723170668310,-2762.02,0.00024497,5]
[334508989,1723170668320,-2762.02,0.00024497,5]
[334508990,1723170668330,-2762.02,0.00024497,5]
[334508991,1723170668341,-1309.81,0.00024497,5]
[334508992,1723170668351,-552.69,0.00024497,5]
[334508993,1723170668362,-552.69,0.00024497,5]
[334508994,1723170668372,-552.69,0.00024497,5]
[334508995,1723170668382,-1423.3,0.00024497,5]
[334508996,1723170668396,-1423.3,0.00024497,5]
[334508997,1723170668406,-1423.3,0.00024497,5]
[334508998,1723170668415,-500.0,0.00024497,5]
[334508999,1723170668426,-781.57,0.00024497,5]
[334509000,1723170668436,-2209.42,0.00024497,5]
[334509001,1723170668445,-2209.42,0.00024497,5]
[334509002,1723170668455,-2209.42,0.00024497,5]
[334509003,1723170668467,-2209.42,0.00024497,5]
[334509004,1723170668478,-155.095783,0.00024497,7]
[334509005,1723170668488,-1713.8,0.00024497,5]
[334509006,1723170668498,-2934.71,0.00024497,5]
[334509007,1723170668508,-2934.71,0.00024497,5]
[334509008,1723170668518,-500.0,0.00024497,5]
[334509009,1723170668745,-2934.71,0.00024497,5]
[334509010,1723170668764,-500.0,0.00024497,5]
[334509011,1723170668774,-500.0,0.00024497,5]
[334509012,1723170668783,-229.84530248,0.00024497,5]
[334509013,1723170668794,-1382.75,0.00024497,5]
[334509014,1723170668803,-1382.75,0.00024497,5]
[334509015,1723170668813,-2650.89,0.00024497,5]
[334509016,1723170668823,-1382.75,0.00024497,5]
[334509017,1723170668833,-762.44,0.00024497,5]
[334509018,1723170668842,-1300.07,0.00024497,5]
[334509019,1723170668852,-437.445396,0.00024497,7]
[334509020,1723170668862,-743.38,0.00024497,5]
[334509021,1723170668872,-500.0,0.00024497,5]
[334509022,1723170668882,-500.0,0.00024497,5]
[334509023,1723170668892,-500.0,0.00024497,5]
[334509024,1723170668902,-500.0,0.00024497,5]
[334509025,1723170668912,-437.445396,0.00024497,7]
[334509026,1723170668922,-500.0,0.00024497,5]
[334509027,1723170668932,-500.0,0.00024497,5]
[334509028,1723170668942,-500.0,0.00024497,5]
[334509029,1723170668952,-1968.46,0.00024497,5]
[334509030,1723170668962,-1203.96,0.00024497,5]
[334509031,1723170668972,-1243.47,0.00024497,5]
[334509032,1723170668982,-1492.11,0.00024497,5]
[334509033,1723170668992,-1487.45,0.00024497,5]
[334509034,1723170669001,-1487.45,0.00024497,5]
[334509035,1723170669011,-1492.11,0.00024497,5]
[334509036,1723170669021,-1487.45,0.00024497,5]
[334509037,1723170669031,-1492.11,0.00024497,5]
[334509038,1723170669045,-500.0,0.00024497,5]
[334509039,1723170669054,-1492.11,0.00024497,5]
[334509040,1723170669064,-757.74,0.00024497,5]
[334509041,1723170669075,-500.0,0.00024497,5]
[334509042,1723170669084,-2814.7,0.00024497,5]